[Event "*** Titled Tuesday Blitz"]
[Site "Chess.com"]
[Date "2020.05.26"]
[Round "1"]
[White "Orest_Vovk"]
[Black "RaunakSadhwani2005"]
[Result "0-1"]
[WhiteElo "2407"]
[BlackElo "2822"]
[TimeControl "180+1"]
[EndTime "10:06:01 PDT"]
[Termination "RaunakSadhwani2005 won on time"]

1. e4 {[%clk 0:03:00.5]} 1... c6 {[%clk 0:02:58.7]} 2. Be2 {[%clk 0:02:59.5]}
2... d5 {[%clk 0:02:58.9]} 3. d3 {[%clk 0:02:59.9]} 3... Nf6 {[%clk 0:02:58]} 4.
Nc3 {[%clk 0:02:53.9]} 4... g6 {[%clk 0:02:56.7]} 5. f4 {[%clk 0:02:53.8]} 5...
Bg7 {[%clk 0:02:56.7]} 6. Nf3 {[%clk 0:02:53.9]} 6... O-O {[%clk 0:02:56.7]} 7.
O-O {[%clk 0:02:52.8]} 7... Qb6+ {[%clk 0:02:55.8]} 8. Kh1 {[%clk 0:02:52.7]}
8... Ng4 {[%clk 0:02:55.9]} 9. Qe1 {[%clk 0:02:44.6]} 9... Ne3 {[%clk
0:02:55.3]} 10. Bxe3 {[%clk 0:02:41]} 10... Qxe3 {[%clk 0:02:56.2]} 11. Qd2
{[%clk 0:02:24.8]} 11... Qxd2 {[%clk 0:02:52.3]} 12. Nxd2 {[%clk 0:02:25.7]}
12... Rd8 {[%clk 0:02:52.1]} 13. exd5 {[%clk 0:02:20]} 13... cxd5 {[%clk
0:02:51]} 14. Bf3 {[%clk 0:02:19.5]} 14... e6 {[%clk 0:02:42.9]} 15. Nb5 {[%clk
0:02:07.9]} 15... Na6 {[%clk 0:02:41.3]} 16. c3 {[%clk 0:02:05.4]} 16... Bd7
{[%clk 0:02:39.5]} 17. a4 {[%clk 0:01:56.2]} 17... Nc5 {[%clk 0:02:39.3]} 18.
Be2 {[%clk 0:01:30.3]} 18... Nxa4 {[%clk 0:02:36.3]} 19. d4 {[%clk 0:01:09.9]}
19... a6 {[%clk 0:02:11.8]} 20. Rxa4 {[%clk 0:01:03.6]} 20... axb5 {[%clk
0:02:10.7]} 21. Rb4 {[%clk 0:01:02.4]} 21... Bf8 {[%clk 0:02:07.5]} 22. Rb3
{[%clk 0:00:55.2]} 22... b4 {[%clk 0:02:04]} 23. c4 {[%clk 0:00:33.1]} 23...
dxc4 {[%clk 0:02:03.2]} 24. Bxc4 {[%clk 0:00:28.8]} 24... Bc6 {[%clk 0:01:56.7]}
25. Rd3 {[%clk 0:00:24.1]} 25... Bg7 {[%clk 0:01:56.8]} 26. Nf3 {[%clk
0:00:12.6]} 26... Rac8 {[%clk 0:01:52.6]} 27. Ne5 {[%clk 0:00:08.8]} 27... Be4
{[%clk 0:01:49]} 28. Re3 {[%clk 0:00:07]} 28... Rxd4 {[%clk 0:01:47.3]} 29. Bb3
{[%clk 0:00:05.1]} 29... Bf5 {[%clk 0:01:40.4]} 30. g4 {[%clk 0:00:04.3]} 30...
Be4+ {[%clk 0:01:38.3]} 31. Kg1 {[%clk 0:00:03.2]} 31... Bxe5 {[%clk 0:01:37.8]}
32. fxe5 {[%clk 0:00:02.8]} 32... Bc6 {[%clk 0:01:38]} 33. Rc1 {[%clk
0:00:02.1]} 33... Rxg4+ {[%clk 0:01:37.2]} 34. Kf2 {[%clk 0:00:02.6]} 34... Rg2+
{[%clk 0:01:37]} 35. Kf1 {[%clk 0:00:02.1]} 35... Rxh2 {[%clk 0:01:37.4]} 0-1

[Event "*** Titled Tuesday Blitz"]
[Site "Chess.com"]
[Date "2020.05.26"]
[Round "1"]
[White "PetrolulSah"]
[Black "Gurvich_Vitaly"]
[Result "0-1"]
[WhiteElo "2192"]
[BlackElo "2544"]
[TimeControl "180+1"]
[EndTime "10:06:02 PDT"]
[Termination "Gurvich_Vitaly won by resignation"]

1. d4 {[%clk 0:02:52.6]} 1... d5 {[%clk 0:02:59.3]} 2. c3 {[%clk 0:02:42.1]}
2... Nf6 {[%clk 0:02:58]} 3. c4 {[%clk 0:02:43]} 3... dxc4 {[%clk 0:02:57.3]} 4.
Nc3 {[%clk 0:02:40.4]} 4... a6 {[%clk 0:02:55.8]} 5. a4 {[%clk 0:02:38.7]} 5...
e6 {[%clk 0:02:52.1]} 6. e3 {[%clk 0:02:35.6]} 6... c5 {[%clk 0:02:45.4]} 7.
Bxc4 {[%clk 0:02:34.7]} 7... Nc6 {[%clk 0:02:41.3]} 8. Nf3 {[%clk 0:02:33.6]}
8... cxd4 {[%clk 0:02:34.5]} 9. exd4 {[%clk 0:02:32.9]} 9... Nb4 {[%clk
0:02:33.1]} 10. O-O {[%clk 0:02:31.8]} 10... Be7 {[%clk 0:02:32.2]} 11. Bg5
{[%clk 0:02:29]} 11... O-O {[%clk 0:02:31.6]} 12. Re1 {[%clk 0:02:28.1]} 12...
b6 {[%clk 0:02:27.3]} 13. Ne4 {[%clk 0:02:06.9]} 13... Nxe4 {[%clk 0:02:20.4]}
14. Bxe7 {[%clk 0:02:06.4]} 14... Qxe7 {[%clk 0:02:19.6]} 15. Rxe4 {[%clk
0:02:06.1]} 15... Bb7 {[%clk 0:02:15.1]} 16. Re1 {[%clk 0:02:04.9]} 16... Rfd8
{[%clk 0:02:14.1]} 17. Qb3 {[%clk 0:02:02.7]} 17... Rac8 {[%clk 0:02:10.1]} 18.
Rad1 {[%clk 0:01:53.4]} 18... Bxf3 {[%clk 0:01:55.4]} 19. gxf3 {[%clk
0:01:52.5]} 19... Qd6 {[%clk 0:01:52]} 20. Re4 {[%clk 0:01:45]} 20... a5 {[%clk
0:01:50.6]} 21. Re5 {[%clk 0:01:34.6]} 21... g6 {[%clk 0:01:41.5]} 22. Rb5
{[%clk 0:01:34.3]} 22... Qc6 {[%clk 0:01:37.2]} 23. Be2 {[%clk 0:01:34.2]} 23...
Qc2 {[%clk 0:01:13.4]} 24. Qxc2 {[%clk 0:01:28.3]} 24... Rxc2 {[%clk 0:01:14.3]}
25. Bf1 {[%clk 0:01:27]} 25... Rd6 {[%clk 0:01:09.9]} 26. b3 {[%clk 0:01:25.4]}
26... Rc3 {[%clk 0:01:09.5]} 27. Bc4 {[%clk 0:01:23.2]} 27... Rxf3 {[%clk
0:01:09.1]} 28. Kg2 {[%clk 0:01:22.6]} 28... Rf4 {[%clk 0:01:06.2]} 29. d5
{[%clk 0:01:21.8]} 29... exd5 {[%clk 0:01:01.9]} 30. Bxd5 {[%clk 0:01:21.6]}
30... Kg7 {[%clk 0:01:01.9]} 31. Bf3 {[%clk 0:01:18.9]} 31... Rdf6 {[%clk
0:00:59.6]} 32. Bd5 {[%clk 0:01:10.9]} 32... Rxf2+ {[%clk 0:00:58.2]} 33. Kg1
{[%clk 0:01:11.2]} 33... Rb2 {[%clk 0:00:47.4]} 34. Bc4 {[%clk 0:01:03.2]} 34...
Rff2 {[%clk 0:00:41.9]} 35. Rxb6 {[%clk 0:01:03]} 35... Rg2+ {[%clk 0:00:40.2]}
36. Kf1 {[%clk 0:01:01.9]} 36... Rbf2+ {[%clk 0:00:38.7]} 0-1

[Event "*** Titled Tuesday Blitz"]
[Site "Chess.com"]
[Date "2020.05.26"]
[Round "1"]
[White "OK97"]
[Black "MidnightFox"]
[Result "1-0"]
[WhiteElo "2793"]
[BlackElo "2403"]
[TimeControl "180+1"]
[EndTime "10:06:04 PDT"]
[Termination "OK97 won by checkmate"]

1. e4 {[%clk 0:03:00.9]} 1... e5 {[%clk 0:02:59.3]} 2. Nf3 {[%clk 0:02:59]} 2...
Nc6 {[%clk 0:02:59.5]} 3. Bb5 {[%clk 0:02:59.5]} 3... a6 {[%clk 0:02:58.7]} 4.
Ba4 {[%clk 0:02:59.8]} 4... Nf6 {[%clk 0:02:58.7]} 5. O-O {[%clk 0:03:00.3]}
5... b5 {[%clk 0:02:59.1]} 6. Bb3 {[%clk 0:03:00]} 6... Bc5 {[%clk 0:02:59.6]}
7. c3 {[%clk 0:03:00.1]} 7... d6 {[%clk 0:02:59.9]} 8. a4 {[%clk 0:02:50.6]}
8... Rb8 {[%clk 0:02:59.4]} 9. d4 {[%clk 0:02:49.6]} 9... Bb6 {[%clk 0:02:58.4]}
10. a5 {[%clk 0:02:49.9]} 10... Ba7 {[%clk 0:02:58]} 11. h3 {[%clk 0:02:50.3]}
11... h6 {[%clk 0:02:57.5]} 12. Be3 {[%clk 0:02:44.9]} 12... Ra8 {[%clk
0:02:57.5]} 13. Nbd2 {[%clk 0:02:28.5]} 13... O-O {[%clk 0:02:55.8]} 14. Re1
{[%clk 0:02:28.2]} 14... Bb7 {[%clk 0:02:55.9]} 15. d5 {[%clk 0:02:06.8]} 15...
Ne7 {[%clk 0:02:53.8]} 16. Bxa7 {[%clk 0:02:06.7]} 16... Rxa7 {[%clk 0:02:54.7]}
17. c4 {[%clk 0:02:06.7]} 17... Ng6 {[%clk 0:02:48.4]} 18. Qc2 {[%clk
0:02:01.1]} 18... Nf4 {[%clk 0:02:42.4]} 19. cxb5 {[%clk 0:01:44.7]} 19... axb5
{[%clk 0:02:43.3]} 20. Nf1 {[%clk 0:01:44.9]} 20... Ba6 {[%clk 0:02:27.4]} 21.
Kh2 {[%clk 0:01:26.3]} 21... Qd7 {[%clk 0:02:25.4]} 22. Ne3 {[%clk 0:01:20.9]}
22... g6 {[%clk 0:02:23.3]} 23. Rec1 {[%clk 0:01:19.3]} 23... b4 {[%clk
0:02:14.5]} 24. Bc4 {[%clk 0:01:12.8]} 24... Bxc4 {[%clk 0:02:14.3]} 25. Nxc4
{[%clk 0:01:08.3]} 25... Qb5 {[%clk 0:02:05.7]} 26. g3 {[%clk 0:01:05.9]} 26...
N4xd5 {[%clk 0:01:54.3]} 27. exd5 {[%clk 0:01:05.2]} 27... Nxd5 {[%clk
0:01:55.2]} 28. Nfd2 {[%clk 0:00:56.9]} 28... f5 {[%clk 0:01:51]} 29. Kg2 {[%clk
0:00:46.5]} 29... Kh7 {[%clk 0:01:50.2]} 30. Qa4 {[%clk 0:00:44.8]} 30... Qb7
{[%clk 0:01:40.8]} 31. Qd7+ {[%clk 0:00:40]} 31... Kh8 {[%clk 0:01:40.9]} 32.
Kg1 {[%clk 0:00:36.9]} 32... Nf6 {[%clk 0:01:34.6]} 33. Qe7 {[%clk 0:00:32.8]}
33... Raa8 {[%clk 0:01:26.4]} 34. Nxd6 {[%clk 0:00:31.5]} 34... Qd5 {[%clk
0:01:23.2]} 35. Rxc7 {[%clk 0:00:28.9]} 35... Qg8 {[%clk 0:01:13.3]} 36. Nf7+
{[%clk 0:00:27.2]} 36... Rxf7 {[%clk 0:01:12.4]} 37. Qxf7 {[%clk 0:00:27.2]}
37... Qd8 {[%clk 0:01:09.3]} 38. Qg7# {[%clk 0:00:26.5]} 1-0

[Event "*** Titled Tuesday Blitz"]
[Site "Chess.com"]
[Date "2020.05.26"]
[Round "1"]
[White "dennisodessa"]
[Black "DortmundCity"]
[Result "0-1"]
[WhiteElo "2234"]
[BlackElo "2579"]
[TimeControl "180+1"]
[EndTime "10:06:04 PDT"]
[Termination "DortmundCity won by resignation"]

1. d4 {[%clk 0:03:00.6]} 1... d5 {[%clk 0:02:56.9]} 2. c4 {[%clk 0:03:00.6]}
2... e6 {[%clk 0:02:54.5]} 3. Nc3 {[%clk 0:03:00.9]} 3... c6 {[%clk 0:02:54.2]}
4. e4 {[%clk 0:02:56.3]} 4... dxe4 {[%clk 0:02:54.2]} 5. Nxe4 {[%clk 0:02:57.2]}
5... Bb4+ {[%clk 0:02:54.8]} 6. Nc3 {[%clk 0:02:55]} 6... c5 {[%clk 0:02:50.4]}
7. d5 {[%clk 0:02:53.2]} 7... exd5 {[%clk 0:02:47.4]} 8. cxd5 {[%clk 0:02:54.1]}
8... Nf6 {[%clk 0:02:45.8]} 9. Bc4 {[%clk 0:02:48.1]} 9... O-O {[%clk
0:02:38.8]} 10. Ne2 {[%clk 0:02:47.7]} 10... a6 {[%clk 0:02:33.2]} 11. a4 {[%clk
0:02:04.7]} 11... Nbd7 {[%clk 0:02:17.5]} 12. O-O {[%clk 0:02:03.4]} 12... Ne5
{[%clk 0:02:17.4]} 13. Ba2 {[%clk 0:01:57.2]} 13... Bg4 {[%clk 0:02:15.5]} 14.
Bg5 {[%clk 0:01:47.8]} 14... h6 {[%clk 0:02:12.3]} 15. Bh4 {[%clk 0:01:48]}
15... c4 {[%clk 0:02:09.8]} 16. Qd4 {[%clk 0:01:01.7]} 16... Re8 {[%clk
0:02:04.9]} 17. Bxc4 {[%clk 0:00:26]} 17... Rc8 {[%clk 0:02:03.8]} 18. Ba2
{[%clk 0:00:15.5]} 18... Bc5 {[%clk 0:01:55.8]} 19. Qd2 {[%clk 0:00:15.7]} 19...
Ne4 {[%clk 0:01:30]} 20. Nxe4 {[%clk 0:00:15.2]} 20... Qxh4 {[%clk 0:01:29.5]}
21. Nxc5 {[%clk 0:00:16.1]} 21... Bxe2 {[%clk 0:01:25.6]} 22. Qxe2 {[%clk
0:00:15.3]} 22... Ng4 {[%clk 0:01:12.4]} 23. Qxg4 {[%clk 0:00:09.7]} 23... Qxg4
{[%clk 0:01:12]} 24. Rac1 {[%clk 0:00:09.3]} 24... Qd4 {[%clk 0:01:08]} 25. Rfd1
{[%clk 0:00:08.5]} 25... Rxc5 {[%clk 0:01:07.1]} 26. Rxd4 {[%clk 0:00:08.4]}
26... Rxc1+ {[%clk 0:01:07]} 0-1

[Event "*** Titled Tuesday Blitz"]
[Site "Chess.com"]
[Date "2020.05.26"]
[Round "1"]
[White "Maghalashvili"]
[Black "El_ultimo_Pablo"]
[Result "1-0"]
[WhiteElo "2802"]
[BlackElo "2404"]
[TimeControl "180+1"]
[EndTime "10:06:09 PDT"]
[Termination "Maghalashvili won by checkmate"]

1. Nf3 {[%clk 0:03:00.9]} 1... Nf6 {[%clk 0:02:59.7]} 2. g3 {[%clk 0:03:01.8]}
2... g6 {[%clk 0:02:56.9]} 3. Bg2 {[%clk 0:03:02.7]} 3... Bg7 {[%clk 0:02:57.5]}
4. O-O {[%clk 0:03:03]} 4... O-O {[%clk 0:02:58]} 5. c4 {[%clk 0:03:03.9]} 5...
d6 {[%clk 0:02:57.8]} 6. Nc3 {[%clk 0:03:03.8]} 6... e5 {[%clk 0:02:57.2]} 7. d4
{[%clk 0:03:04.7]} 7... Nc6 {[%clk 0:02:48.1]} 8. dxe5 {[%clk 0:03:03.9]} 8...
dxe5 {[%clk 0:02:46]} 9. Bg5 {[%clk 0:03:03.8]} 9... Be6 {[%clk 0:02:34.1]} 10.
Nd5 {[%clk 0:03:03.7]} 10... Bxd5 {[%clk 0:02:07.6]} 11. Bxf6 {[%clk 0:03:02.3]}
11... Bxf6 {[%clk 0:02:07.7]} 12. cxd5 {[%clk 0:03:03.2]} 12... Nd4 {[%clk
0:02:07.2]} 13. Nd2 {[%clk 0:02:58.7]} 13... Bg7 {[%clk 0:01:48.5]} 14. Rc1
{[%clk 0:02:54]} 14... Rc8 {[%clk 0:01:47.6]} 15. e3 {[%clk 0:02:49.3]} 15...
Nf5 {[%clk 0:01:47.1]} 16. Bh3 {[%clk 0:02:47.8]} 16... Ra8 {[%clk 0:00:59.8]}
17. Qc2 {[%clk 0:02:45.5]} 17... Ne7 {[%clk 0:00:45.7]} 18. Qxc7 {[%clk
0:02:26.4]} 18... Nxd5 {[%clk 0:00:45.4]} 19. Qxb7 {[%clk 0:02:25.9]} 19... Nxe3
{[%clk 0:00:36.1]} 20. fxe3 {[%clk 0:02:23.4]} 20... Qxd2 {[%clk 0:00:36]} 21.
Qe4 {[%clk 0:01:52.3]} 21... Qxb2 {[%clk 0:00:23.5]} 22. Rc2 {[%clk 0:01:52.3]}
22... Qb6 {[%clk 0:00:22.3]} 23. Rxf7 {[%clk 0:01:44.7]} 23... Rxf7 {[%clk
0:00:18.9]} 24. Qxa8+ {[%clk 0:01:43.6]} 24... Rf8 {[%clk 0:00:19.4]} 25. Qd5+
{[%clk 0:01:39.6]} 25... Kh8 {[%clk 0:00:18.8]} 26. Qb3 {[%clk 0:01:38]} 26...
Qxb3 {[%clk 0:00:12.8]} 27. axb3 {[%clk 0:01:38.9]} 27... Bh6 {[%clk 0:00:13.2]}
28. Rc3 {[%clk 0:01:38.7]} 28... Rd8 {[%clk 0:00:10.4]} 29. Kf2 {[%clk
0:01:31.7]} 29... Rd2+ {[%clk 0:00:09.8]} 30. Kf3 {[%clk 0:01:31.6]} 30... Rxh2
{[%clk 0:00:08]} 31. Be6 {[%clk 0:01:31.5]} 31... Kg7 {[%clk 0:00:06.3]} 32. Rc6
{[%clk 0:01:29]} 32... Rb2 {[%clk 0:00:05.2]} 33. Bc4 {[%clk 0:01:27.4]} 33...
Bg5 {[%clk 0:00:04.6]} 34. Rc7+ {[%clk 0:01:25.9]} 34... Kf6 {[%clk 0:00:04.9]}
35. Rxh7 {[%clk 0:01:25.7]} 35... e4+ {[%clk 0:00:03.1]} 36. Kxe4 {[%clk
0:01:22.9]} 36... Re2 {[%clk 0:00:03.3]} 37. Rf7# {[%clk 0:01:22.9]} 1-0

[Event "*** Titled Tuesday Blitz"]
[Site "Chess.com"]
[Date "2020.05.26"]
[Round "1"]
[White "Luibov_AN"]
[Black "Sanyura"]
[Result "0-1"]
[WhiteElo "2037"]
[BlackElo "2483"]
[TimeControl "180+1"]
[EndTime "10:06:09 PDT"]
[Termination "Sanyura won by resignation"]

1. d4 {[%clk 0:02:59.8]} 1... Nf6 {[%clk 0:02:55.6]} 2. Nf3 {[%clk 0:02:45.6]}
2... g6 {[%clk 0:02:55]} 3. Bg5 {[%clk 0:02:26.5]} 3... Bg7 {[%clk 0:02:54.1]}
4. Nbd2 {[%clk 0:02:25.9]} 4... O-O {[%clk 0:02:53.7]} 5. e4 {[%clk 0:02:23.8]}
5... d6 {[%clk 0:02:53.5]} 6. c3 {[%clk 0:02:23.2]} 6... c5 {[%clk 0:02:51.9]}
7. dxc5 {[%clk 0:02:21.5]} 7... dxc5 {[%clk 0:02:52.8]} 8. Qc2 {[%clk
0:02:19.5]} 8... Nc6 {[%clk 0:02:52]} 9. Bc4 {[%clk 0:02:17.7]} 9... a6 {[%clk
0:02:47.7]} 10. a4 {[%clk 0:02:17.3]} 10... Rb8 {[%clk 0:02:46.2]} 11. Bf4
{[%clk 0:02:02.9]} 11... Ra8 {[%clk 0:02:34.7]} 12. h3 {[%clk 0:01:57.2]} 12...
Nh5 {[%clk 0:02:30.1]} 13. Be3 {[%clk 0:01:53.9]} 13... b6 {[%clk 0:02:25.5]}
14. O-O {[%clk 0:01:47.6]} 14... Bb7 {[%clk 0:02:24.6]} 15. Rad1 {[%clk
0:01:45.4]} 15... Qc7 {[%clk 0:02:23.4]} 16. Rfe1 {[%clk 0:01:44.3]} 16... Rad8
{[%clk 0:02:19]} 17. Nf1 {[%clk 0:01:35.5]} 17... Ne5 {[%clk 0:02:05.3]} 18.
Nxe5 {[%clk 0:01:18.2]} 18... Bxe5 {[%clk 0:02:06.1]} 19. g3 {[%clk 0:01:09]}
19... Rxd1 {[%clk 0:01:47.6]} 20. Rxd1 {[%clk 0:00:59.7]} 20... Rd8 {[%clk
0:01:45.2]} 21. f4 {[%clk 0:00:50]} 21... Bh8 {[%clk 0:01:29]} 22. Rxd8+ {[%clk
0:00:34.7]} 22... Qxd8 {[%clk 0:01:29.9]} 23. a5 {[%clk 0:00:29.1]} 23... b5
{[%clk 0:01:28.3]} 24. Ba2 {[%clk 0:00:25.9]} 24... c4 {[%clk 0:01:26.5]} 25.
Bb1 {[%clk 0:00:25]} 25... Nf6 {[%clk 0:01:22.7]} 26. Nd2 {[%clk 0:00:21.3]}
26... Qxa5 {[%clk 0:01:07.7]} 27. b3 {[%clk 0:00:17.9]} 27... cxb3 {[%clk
0:01:02.7]} 28. Nxb3 {[%clk 0:00:18.1]} 28... Qd8 {[%clk 0:01:00.2]} 29. Nc5
{[%clk 0:00:18.2]} 29... Bc8 {[%clk 0:01:00.4]} 30. e5 {[%clk 0:00:18.5]} 30...
Nd5 {[%clk 0:01:00]} 31. Bf2 {[%clk 0:00:18.2]} 31... Bxh3 {[%clk 0:00:59.7]}
0-1

[Event "*** Titled Tuesday Blitz"]
[Site "Chess.com"]
[Date "2020.05.26"]
[Round "1"]
[White "kleopl"]
[Black "Jospem"]
[Result "0-1"]
[WhiteElo "2425"]
[BlackElo "2875"]
[TimeControl "180+1"]
[EndTime "10:06:10 PDT"]
[Termination "Jospem won by resignation"]

1. c4 {[%clk 0:03:00.1]} 1... c5 {[%clk 0:02:52.7]} 2. Nf3 {[%clk 0:02:58.8]}
2... Nc6 {[%clk 0:02:52.9]} 3. Nc3 {[%clk 0:02:57.8]} 3... Nf6 {[%clk
0:02:53.1]} 4. g3 {[%clk 0:02:57.5]} 4... g6 {[%clk 0:02:53.3]} 5. d4 {[%clk
0:02:56.9]} 5... Bg7 {[%clk 0:02:54.2]} 6. d5 {[%clk 0:02:55.6]} 6... Na5 {[%clk
0:02:54.5]} 7. e4 {[%clk 0:02:52.2]} 7... d6 {[%clk 0:02:54.5]} 8. h3 {[%clk
0:02:48.2]} 8... O-O {[%clk 0:02:51.4]} 9. Qd3 {[%clk 0:02:34]} 9... a6 {[%clk
0:02:50.1]} 10. Bg2 {[%clk 0:02:28.6]} 10... b5 {[%clk 0:02:50.3]} 11. cxb5
{[%clk 0:02:26.5]} 11... axb5 {[%clk 0:02:51.2]} 12. Nxb5 {[%clk 0:02:07.7]}
12... Ba6 {[%clk 0:02:50.3]} 13. a4 {[%clk 0:01:56]} 13... c4 {[%clk 0:02:50.2]}
14. Qe3 {[%clk 0:01:40.1]} 14... Nb3 {[%clk 0:02:48.8]} 15. Ra3 {[%clk
0:01:37.4]} 15... Bxb5 {[%clk 0:02:21.2]} 16. axb5 {[%clk 0:01:38.3]} 16... Rxa3
{[%clk 0:02:22.1]} 17. bxa3 {[%clk 0:01:38]} 17... Qa5+ {[%clk 0:02:23]} 18. Bd2
{[%clk 0:00:53.4]} 18... Nxd2 {[%clk 0:02:04]} 19. Nxd2 {[%clk 0:00:48.5]} 19...
c3 {[%clk 0:02:03.9]} 20. Nb3 {[%clk 0:00:33.7]} 20... Qxb5 {[%clk 0:01:56.3]}
21. Nc1 {[%clk 0:00:13.9]} 21... Rc8 {[%clk 0:01:47.8]} 22. Bf1 {[%clk
0:00:11.6]} 22... Qb2 {[%clk 0:01:46.6]} 23. Bd3 {[%clk 0:00:09.5]} 23... Qxa3
{[%clk 0:01:44.4]} 24. O-O {[%clk 0:00:09.4]} 24... Nd7 {[%clk 0:01:44.9]} 25.
Ne2 {[%clk 0:00:08.5]} 25... Nc5 {[%clk 0:01:40.9]} 26. Bc2 {[%clk 0:00:07.2]}
26... Qb2 {[%clk 0:01:40.4]} 27. Rc1 {[%clk 0:00:06.8]} 27... Ra8 {[%clk
0:01:32.8]} 28. Kg2 {[%clk 0:00:06.8]} 28... Ra1 {[%clk 0:01:30]} 29. Rxa1
{[%clk 0:00:06.4]} 29... Qxa1 {[%clk 0:01:30.9]} 30. h4 {[%clk 0:00:04]} 30...
Qb2 {[%clk 0:01:31.1]} 31. Bd3 {[%clk 0:00:02.1]} 31... c2 {[%clk 0:01:26.9]}
32. Bxc2 {[%clk 0:00:01.3]} 32... Qxc2 {[%clk 0:01:26.9]} 33. h5 {[%clk
0:00:01.8]} 33... Qxe4+ {[%clk 0:01:26.8]} 34. Qxe4 {[%clk 0:00:01.8]} 34...
Nxe4 {[%clk 0:01:27.7]} 35. hxg6 {[%clk 0:00:01.6]} 35... hxg6 {[%clk
0:01:28.6]} 36. Nf4 {[%clk 0:00:02.3]} 36... Nc3 {[%clk 0:01:28.8]} 37. Nh3
{[%clk 0:00:03.2]} 37... Nxd5 {[%clk 0:01:28.6]} 0-1

[Event "*** Titled Tuesday Blitz"]
[Site "Chess.com"]
[Date "2020.05.26"]
[Round "1"]
[White "TranJMinh"]
[Black "Ceejay271"]
[Result "1-0"]
[WhiteElo "2784"]
[BlackElo "2400"]
[TimeControl "180+1"]
[EndTime "10:06:10 PDT"]
[Termination "TranJMinh won by resignation"]

1. d4 {[%clk 0:02:59.7]} 1... Nf6 {[%clk 0:02:59.3]} 2. c4 {[%clk 0:02:59]} 2...
e6 {[%clk 0:02:58.8]} 3. Nc3 {[%clk 0:02:56.2]} 3... Bb4 {[%clk 0:02:57.6]} 4.
e3 {[%clk 0:02:40.7]} 4... O-O {[%clk 0:02:54.4]} 5. Ne2 {[%clk 0:02:37.2]} 5...
d5 {[%clk 0:02:52.9]} 6. a3 {[%clk 0:02:36.7]} 6... Be7 {[%clk 0:02:51.9]} 7.
Nf4 {[%clk 0:02:35.6]} 7... a5 {[%clk 0:02:39.6]} 8. Bd3 {[%clk 0:02:32.8]} 8...
dxc4 {[%clk 0:02:27.7]} 9. Bxc4 {[%clk 0:02:33.7]} 9... c5 {[%clk 0:02:27]} 10.
O-O {[%clk 0:02:30.4]} 10... Nc6 {[%clk 0:02:21.6]} 11. d5 {[%clk 0:02:27.9]}
11... exd5 {[%clk 0:02:20.6]} 12. Ncxd5 {[%clk 0:02:27.1]} 12... Nxd5 {[%clk
0:02:19.1]} 13. Nxd5 {[%clk 0:02:23.1]} 13... Bd6 {[%clk 0:02:16.7]} 14. f4
{[%clk 0:02:23.5]} 14... a4 {[%clk 0:02:03.8]} 15. e4 {[%clk 0:02:09.2]} 15...
Re8 {[%clk 0:01:53.1]} 16. e5 {[%clk 0:02:03.5]} 16... Bf8 {[%clk 0:01:50.9]}
17. Be3 {[%clk 0:01:53.9]} 17... Bf5 {[%clk 0:01:22.5]} 18. Qh5 {[%clk
0:01:44.5]} 18... Bg6 {[%clk 0:01:15.7]} 19. Qf3 {[%clk 0:01:44.1]} 19... Na5
{[%clk 0:01:13.3]} 20. Bb5 {[%clk 0:01:42.4]} 20... Nb3 {[%clk 0:01:03.1]} 21.
Rad1 {[%clk 0:01:42.3]} 21... Bc2 {[%clk 0:01:00.7]} 22. Nf6+ {[%clk 0:01:35.5]}
22... gxf6 {[%clk 0:00:55]} 23. Rxd8 {[%clk 0:01:35.5]} 23... Rexd8 {[%clk
0:00:48]} 24. exf6 {[%clk 0:01:34.2]} 24... Nd4 {[%clk 0:00:35]} 25. Bxd4 {[%clk
0:01:25]} 25... cxd4 {[%clk 0:00:34.3]} 26. Bd3 {[%clk 0:01:17.3]} 26... Bxd3
{[%clk 0:00:32.7]} 27. Qxd3 {[%clk 0:01:18.2]} 27... Rac8 {[%clk 0:00:27.5]} 28.
Rf3 {[%clk 0:01:18.8]} 28... Rc6 {[%clk 0:00:19.5]} 29. Rg3+ {[%clk 0:01:12.9]}
29... Kh8 {[%clk 0:00:19]} 30. Qf5 {[%clk 0:00:59.9]} 30... Rcd6 {[%clk
0:00:15.6]} 31. Qg5 {[%clk 0:00:56.6]} 1-0

[Event "*** Titled Tuesday Blitz"]
[Site "Chess.com"]
[Date "2020.05.26"]
[Round "1"]
[White "robertofabregas"]
[Black "Sadykov_Ramil"]
[Result "0-1"]
[WhiteElo "2103"]
[BlackElo "2502"]
[TimeControl "180+1"]
[EndTime "10:06:11 PDT"]
[Termination "Sadykov_Ramil won by resignation"]

1. c4 {[%clk 0:03:00.9]} 1... e6 {[%clk 0:02:59.8]} 2. Nf3 {[%clk 0:03:00]} 2...
d5 {[%clk 0:03:00]} 3. d4 {[%clk 0:02:59.9]} 3... Nf6 {[%clk 0:02:59]} 4. g3
{[%clk 0:02:59.3]} 4... dxc4 {[%clk 0:02:53.7]} 5. Nc3 {[%clk 0:02:57.7]} 5...
Nc6 {[%clk 0:02:49.1]} 6. Bg2 {[%clk 0:02:54.8]} 6... Rb8 {[%clk 0:02:47.9]} 7.
a4 {[%clk 0:02:48.3]} 7... a6 {[%clk 0:02:42.1]} 8. e3 {[%clk 0:02:31.3]} 8...
b5 {[%clk 0:02:38.8]} 9. axb5 {[%clk 0:02:31.1]} 9... axb5 {[%clk 0:02:39.7]}
10. O-O {[%clk 0:02:31.1]} 10... Be7 {[%clk 0:02:32.7]} 11. Re1 {[%clk
0:02:16.7]} 11... O-O {[%clk 0:02:31.8]} 12. Ng5 {[%clk 0:02:12.3]} 12... Nb4
{[%clk 0:02:26.5]} 13. Nge4 {[%clk 0:01:53.1]} 13... Nd3 {[%clk 0:02:23.7]} 14.
Rf1 {[%clk 0:01:49.3]} 14... Bb7 {[%clk 0:02:16.8]} 15. Ra7 {[%clk 0:01:36.6]}
15... Nxe4 {[%clk 0:02:09.5]} 16. Nxe4 {[%clk 0:01:33.9]} 16... Bd5 {[%clk
0:02:03]} 17. f3 {[%clk 0:01:01.1]} 17... Ra8 {[%clk 0:01:46.8]} 18. Rxa8 {[%clk
0:01:00.3]} 18... Bxa8 {[%clk 0:01:40.5]} 19. Nf2 {[%clk 0:01:00.3]} 19... Nxc1
{[%clk 0:01:37.9]} 20. Qxc1 {[%clk 0:00:59.7]} 20... c5 {[%clk 0:01:38.2]} 21.
Rd1 {[%clk 0:00:57]} 21... Qb6 {[%clk 0:01:37.8]} 22. Ng4 {[%clk 0:00:46.9]}
22... cxd4 {[%clk 0:01:25.9]} 23. Rxd4 {[%clk 0:00:45.8]} 23... Bd5 {[%clk
0:01:18.5]} 24. Qd1 {[%clk 0:00:29.9]} 24... Bc5 {[%clk 0:01:16.4]} 25. Rxd5
{[%clk 0:00:19.7]} 25... Bxe3+ {[%clk 0:01:13.2]} 26. Kf1 {[%clk 0:00:17.3]}
26... exd5 {[%clk 0:01:12.6]} 27. Qxd5 {[%clk 0:00:16]} 27... Qd4 {[%clk
0:01:01.9]} 28. Qxd4 {[%clk 0:00:15]} 28... Bxd4 {[%clk 0:01:00.4]} 0-1